[Event "Turkish Youth Teams U18 2024"]
[Site "Karaman"]
[Date "2024.04.23"]
[Round "6"]
[White "Ozgor, Ezel"]
[Black "Aslan, Ela"]
[Result "1/2-1/2"]
[ECO "D37"]
[WhiteElo "1741"]
[BlackElo "1659"]
[Annotator "NA COMBH"]
[PlyCount "114"]
[EventDate "2024.04.21"]
[EventType "team-tourn"]
[EventCountry "TUR"]
[SourceTitle "playchess.com"]
[Source "ChessBase"]
[SourceQuality "1"]
[TimeControl "5400+30"]

1. d4 d5 2. Nf3 Nf6 3. c4 e6 4. e3 Be7 5. Nc3 O-O 6. a3 a5 7. b3 Nbd7 8. Bb2 c5 9. cxd5 exd5 10. Rc1 Re8 11. Be2 b6 12. Ne5 Ba6 13. Bxa6 Rxa6 14. Nc6 Qa8 15. Qd3 c4 16. Nxe7+ Rxe7 17. Qc2 Qc6 18. a4 Ra8 19. Nb5 Rae8 20. O-O Ne4 21. Rfd1 Nf8 22. bxc4 dxc4 23. d5 Qg6 24. Qxc4 Nc5 25. Ba3 Re4 26. Rd4 Rxd4 27. Nxd4 Nfd7 28. Qb5 Qe4 29. Qc6 h5 30. Bxc5 Nxc5 31. Qxb6 Nd3 32. Rd1 h4 33. d6 h3 34. Qc6 Qg4 35. Qf3 Qxf3 36. Nxf3 Nc5 37. gxh3 Nxa4 38. d7 Rd8 39. Ne5 Nc5 40. Rd5 Ne6 41. Nc6 Kf8 42. Nxd8 Nxd8 43. Rxa5 Ke7 44. Re5+ Kxd7 45. Rd5+ Ke7 46. Rxd8 Kxd8 47. Kg2 Ke7 48. f4 Kf6 49. Kf3 Kg6 50. h4 Kh5 51. Kg3 f5 52. Kf3 Kxh4 53. e4 fxe4+ 54. Kxe4 Kh3 55. Kf5 Kxh2 56. Kg6 Kg3 57. Kxg7 Kxf4 1/2-1/2

[Event "Turkish Youth Teams U18 2024"]
[Site "Karaman"]
[Date "2024.04.23"]
[Round "6"]
[White "Bozdag, Armagan Emre"]
[Black "Eracar, Ali Arda"]
[Result "1-0"]
[ECO "B91"]
[WhiteElo "1716"]
[BlackElo "1738"]
[Annotator "NA RC COMBH"]
[PlyCount "97"]
[EventDate "2024.04.21"]
[EventType "team-tourn"]
[EventCountry "TUR"]
[SourceTitle "playchess.com"]
[Source "ChessBase"]
[SourceQuality "1"]
[TimeControl "5400+30"]

1. e4 c5 2. Nf3 d6 3. d4 cxd4 4. Nxd4 Nf6 5. Nc3 a6 6. g3 g6 7. Bg2 Bg7 8. O-O O-O 9. h3 Nc6 10. Be3 Bd7 11. Nd5 Rc8 12. Nxc6 Bxc6 13. Re1 Nd7 14. c3 b5 15. f4 a5 16. Bd4 Bxd4+ 17. Qxd4 Bxd5 18. exd5 Re8 19. h4 Rc5 20. Re2 Nb6 21. Rae1 Qc7 22. h5 Rc4 23. Qd2 f5 24. Re6 Kf7 25. Qe2 Qd7 26. Bf3 Rc7 27. hxg6+ hxg6 28. Qh2 Rg8 29. Qh6 Ke8 30. Rxg6 Rxg6 31. Bh5 Kd8 32. Bxg6 Kc8 33. Qf8+ Kb7 34. Bxf5 e6 35. Rxe6 Nxd5 36. Rxd6 Qe7 37. Qxe7 Nxe7 38. Be4+ Ka7 39. f5 b4 40. cxb4 axb4 41. g4 Ng8 42. g5 Rc4 43. Ra6+ Kb8 44. Ra8+ Kc7 45. Rxg8 Rxe4 46. f6 Rf4 47. Rg7+ Kd8 48. f7 Ke7 49. g6 1-0

[Event "Turkish Youth Teams U18 2024"]
[Site "Karaman"]
[Date "2024.04.23"]
[Round "6"]
[White "Mullakutukcu, Ela"]
[Black "Engel, Ecrin Tuana"]
[Result "1/2-1/2"]
[ECO "A45"]
[WhiteElo "1693"]
[BlackElo "1619"]
[Annotator "NA RC COMBH"]
[PlyCount "151"]
[EventDate "2024.04.21"]
[EventType "team-tourn"]
[EventCountry "TUR"]
[SourceTitle "playchess.com"]
[Source "ChessBase"]
[SourceQuality "1"]
[TimeControl "5400+30"]

1. d4 Nf6 2. Bf4 c5 3. e3 Nd5 4. Bg3 Qb6 5. Nc3 Nxc3 6. bxc3 cxd4 7. exd4 d5 8. Bd3 Nc6 9. Ne2 g6 10. O-O Bg7 11. Rb1 Qd8 12. Qd2 O-O 13. Bf4 b6 14. Bh6 Na5 15. Rb4 Bb7 16. h4 Nc4 17. Qc1 e5 18. h5 Re8 19. Bg5 Bf6 20. Bxf6 Qxf6 21. hxg6 hxg6 22. Re1 Ba6 23. Ng3 exd4 24. cxd4 Qxd4 25. Rd1 Qf6 26. Qh6 Qg7 27. Qxg7+ Kxg7 28. Be2 Rad8 29. Bf3 Ne5 30. Ra4 Nxf3+ 31. gxf3 Bc4 32. Rxa7 Ra8 33. Rb7 Rxa2 34. Rxb6 Rxc2 35. Rc6 Ra2 36. Rc7 Rea8 37. Rd4 R8a7 38. Rc5 R2a5 39. Rc8 Rb7 40. Kg2 Ra2 41. Rd1 Rbb2 42. Nh1 Rd2 43. Re1 Re2 44. Rb1 Re5 45. Rc7 Ra3 46. Ng3 Rb3 47. Ra1 Re6 48. f4 Rf6 49. f5 Bd3 50. fxg6 Rxg6 51. Raa7 Be4+ 52. Kf1 Rf3 53. Nxe4 dxe4 54. Re7 Rgf6 55. Rxe4 Rxf2+ 56. Ke1 Rf1+ 57. Kd2 R6f2+ 58. Re2 Rxe2+ 59. Kxe2 Rb1 60. Kf3 Kg6 61. Ra6+ f6 62. Kg4 Rb4+ 63. Kf3 Kg5 64. Ra5+ f5 65. Ra8 Rb3+ 66. Kf2 Kg4 67. Rg8+ Kf4 68. Rf8 Rb2+ 69. Kf1 Rb5 70. Kf2 Re5 71. Ra8 Rb5 72. Ra4+ Kg5 73. Kf3 Rb3+ 74. Kf2 Rb7 75. Kf3 Rf7 76. Ra8 1/2-1/2

[Event "Turkish Youth Teams U18 2024"]
[Site "Karaman"]
[Date "2024.04.23"]
[Round "6"]
[White "Guzel, Eren"]
[Black "Saskin, Ayaz"]
[Result "1/2-1/2"]
[ECO "D02"]
[WhiteElo "1680"]
[BlackElo "1696"]
[Annotator "NA RC COMBH"]
[PlyCount "54"]
[EventDate "2024.04.21"]
[EventType "team-tourn"]
[EventCountry "TUR"]
[SourceTitle "playchess.com"]
[Source "ChessBase"]
[SourceQuality "1"]
[TimeControl "5400+30"]

1. d4 Nf6 2. Bf4 e6 3. Nf3 d5 4. e3 c5 5. c3 Nc6 6. Nbd2 cxd4 7. exd4 Nh5 8. Bg5 f6 9. Bh4 Bd6 10. Ne5 Nf4 11. Nd3 Ng6 12. Bg3 O-O 13. Be2 Qc7 14. Bxd6 Qxd6 15. O-O b6 16. Re1 Bb7 17. Qb3 Rad8 18. Rad1 Ba6 19. Qa4 Bxd3 20. Bxd3 Nf4 21. Bb1 e5 22. dxe5 fxe5 23. Qc2 Ng6 24. Kh1 Kh8 25. Kg1 Kg8 26. Kh1 Kh8 27. Kg1 Kg8 1/2-1/2

[Event "Turkish Youth Teams U18 2024"]
[Site "Karaman"]
[Date "2024.04.23"]
[Round "6"]
[White "Nurdogan, Ilgin Destina"]
[Black "Buyuk, Elvin Esma"]
[Result "1-0"]
[ECO "D04"]
[WhiteElo "1633"]
[BlackElo "1708"]
[Annotator "NA COMBH"]
[PlyCount "106"]
[EventDate "2024.04.21"]
[EventType "team-tourn"]
[EventCountry "TUR"]
[SourceTitle "playchess.com"]
[Source "ChessBase"]
[SourceQuality "1"]
[TimeControl "5400+30"]

1. d4 d5 2. Nf3 Nf6 3. e3 Bf5 4. c4 h6 5. Qb3 b6 6. cxd5 Nxd5 7. Bc4 e6 8. O-O c6 9. Re1 Nc7 10. e4 Bh7 11. Nc3 b5 12. Bf1 a5 13. d5 a4 14. Qd1 Bb4 15. Ne5 Qf6 16. Nxc6 Nxc6 17. dxc6 Rd8 18. Qc2 Bxc3 19. bxc3 e5 20. Ba3 Qxc6 21. Qb2 f6 22. Qb4 Kd7 23. c4 bxc4 24. Red1+ Kc8 25. Rab1 Na6 26. Qa5 Rxd1 27. Rb6 Qxb6 28. Qxb6 Nc7 29. Bd6 Rxd6 30. Qxd6 Rd8 31. Qc6 Rd4 32. f3 Bg8 33. Qxa4 c3 34. Qc2 Rd2 35. Qxc3 Rxa2 36. Qc5 Kb7 37. Qb4+ Ka7 38. Qe7 Kb7 39. Qxg7 Bb3 40. Qxf6 Ra5 41. Qxh6 Ra1 42. Qd2 Rb1 43. Qb4+ Kc8 44. Kf2 Ba2 45. Qa3 Be6 46. Ba6+ Kb8 47. Bd3 Rb6 48. Qc5 Rb3 49. Bc4 Rb2+ 50. Kg3 Bxc4 51. Qxc4 Rb6 52. Qc5 Re6 53. Qf8+ Re8 1-0

[Event "Turkish Youth Teams U18 2024"]
[Site "Karaman"]
[Date "2024.04.23"]
[Round "6"]
[White "Iyican, Sude"]
[Black "Tasdelen, Asuman Betul"]
[Result "1-0"]
[ECO "E81"]
[WhiteElo "1562"]
[BlackElo "1425"]
[Annotator "NA RC COMBH"]
[PlyCount "101"]
[EventDate "2024.04.21"]
[EventType "team-tourn"]
[EventCountry "TUR"]
[SourceTitle "playchess.com"]
[Source "ChessBase"]
[SourceQuality "1"]
[TimeControl "5400+30"]

1. d4 Nf6 2. c4 g6 3. Nc3 Bg7 4. e4 O-O 5. f3 d6 6. Be3 c6 7. Qd2 d5 8. e5 Ne8 9. cxd5 cxd5 10. Bd3 f6 11. f4 fxe5 12. fxe5 Bf5 13. Nge2 Nc7 14. O-O e6 15. Bxf5 Rxf5 16. Rxf5 gxf5 17. Nf4 Qe8 18. Qe2 Bh6 19. Nfxd5 Nxd5 20. Bxh6 Nxc3 21. bxc3 Nd7 22. Qf3 Rb8 23. Re1 Nb6 24. Qd3 Rc8 25. Re3 Rc7 26. Rg3+ Kh8 27. Qe3 Qh5 28. Qd2 Nc4 29. Qc1 Nb6 30. Bg5 h6 31. Rh3 Qg4 32. Rxh6+ Rh7 33. Rxe6 Qh5 34. Bf6+ Kg8 35. Qg5+ Qxg5 36. Bxg5 Rc7 37. Bd8 Rxc3 38. Bxb6 axb6 39. Rxb6 Rc1+ 40. Kf2 Rc2+ 41. Kf3 Rxa2 42. Rxb7 Rd2 43. Rd7 Kf8 44. d5 Ke8 45. e6 Rd3+ 46. Kf4 Rd2 47. Kxf5 Rxg2 48. Rh7 Rf2+ 49. Ke5 Ra2 50. Rh8+ Ke7 51. d6# 1-0

[Event "Turkish Youth Teams U18 2024"]
[Site "Karaman"]
[Date "2024.04.23"]
[Round "6"]
[White "Tasdelen, Buket"]
[Black "Acar, Zeynep"]
[Result "0-1"]
[ECO "B06"]
[WhiteElo "1495"]
[BlackElo "1671"]
[Annotator "NA RC COMBH"]
[PlyCount "96"]
[EventDate "2024.04.21"]
[EventType "team-tourn"]
[EventCountry "TUR"]
[SourceTitle "playchess.com"]
[Source "ChessBase"]
[SourceQuality "1"]
[TimeControl "5400+30"]

1. e4 c5 2. Nf3 g6 3. c3 d5 4. exd5 Qxd5 5. d4 Bg7 6. Be3 cxd4 7. Bxd4 Nf6 8. Na3 O-O 9. Bc4 Qe4+ 10. Qe2 Qxe2+ 11. Bxe2 Nc6 12. O-O Be6 13. h3 a6 14. Bc4 Bf5 15. Bb3 Be4 16. Bxf6 Bxf6 17. Nd2 Bd3 18. Rfe1 b5 19. Bd5 Rac8 20. Re3 Bf5 21. g4 Bd7 22. Ne4 Rfd8 23. Nc5 e6 24. Bg2 b4 25. Nc4 Be8 26. Nb7 bxc3 27. Nxd8 cxb2 28. Nxb2 Nxd8 29. Rb1 Rc2 30. Rb3 Bb5 31. a3 Bh4 32. Nd1 Nc6 33. R3b2 Rc5 34. Ne3 Nd4 35. Rb4 Ne2+ 36. Kh1 Bxf2 37. a4 Bd3 38. Rb8+ Kg7 39. Rd1 Bxe3 40. Rd8 Bc2 41. Re1 Ng3+ 42. Kh2 Bf4 43. Rd4 Ne2+ 44. Rxf4 Nxf4 45. Bb7 Nd5 46. Bxa6 Bxa4 47. g5 h6 48. gxh6+ Kxh6 0-1

[Event "Turkish Youth Teams U18 2024"]
[Site "Karaman"]
[Date "2024.04.23"]
[Round "6"]
[White "Kilic, Melis"]
[Black "Aydin, Erem"]
[Result "0-1"]
[ECO "E05"]
[WhiteElo "1455"]
[BlackElo "1546"]
[Annotator "NA RC COMBH"]
[PlyCount "69"]
[EventDate "2024.04.21"]
[EventType "team-tourn"]
[EventCountry "TUR"]
[SourceTitle "playchess.com"]
[Source "ChessBase"]
[SourceQuality "1"]
[TimeControl "5400+30"]

1. Nf3 d5 2. g3 Nf6 3. Bg2 e6 4. O-O Be7 5. c4 O-O 6. d4 dxc4 7. Ne5 Nc6 8. Nxc6 bxc6 9. Bxc6 Rb8 10. Nc3 Bb7 11. Bg2 Bxg2 12. Kxg2 Qd7 13. b3 cxb3 14. axb3 Qc6+ 15. Kg1 Qxc3 16. Bf4 Bd6 17. Bxd6 cxd6 18. Rxa7 Qxb3 19. Qa1 h6 20. Ra6 d5 21. e3 Ne4 22. Ra3 Qb2 23. Kg2 Rfc8 24. Qxb2 Rxb2 25. Kg1 Rcc2 26. Kg2 Nxf2 27. Kf3 Ne4 28. Kg4 g6 29. h3 h5+ 30. Kh4 g5+ 31. Kxh5 Kg7 32. Kg4 f5+ 33. Kh5 Rh2 34. Ra7+ Kf6 35. h4 0-1

[Event "Turkish Youth Teams U18 2024"]
[Site "Karaman"]
[Date "2024.04.24"]
[Round "7"]
[White "Durak, Can"]
[Black "Tezcan, Alper"]
[Result "1-0"]
[ECO "A13"]
[WhiteElo "2446"]
[BlackElo "1894"]
[Annotator "TA"]
[PlyCount "89"]
[EventDate "2024.04.21"]
[EventType "team-tourn"]
[EventCountry "TUR"]
[SourceTitle "playchess.com"]
[Source "ChessBase"]
[SourceQuality "1"]
[TimeControl "5400+30"]

{[%evp 13,89,0,1,0,0,0,4,0,29,30,21,18,8,8,19,13,29,27,35,37,37,31,39,31,35,18,20,0,0,0,0,0,7,16,16,0,10,0,7,5,19,0,0,0,0,-23,24,9,9,15,4,0,33,14,41,48,41,20,100,103,118,91,102,104,148,64,57,0,129,132,229,221,613,614,615,608,889,873]} 1. Nf3 {[%emt 0:01:00]} d5 {[%emt 0:07:00]} 2. e3 {[%emt 0:00:00]} Nf6 {[%emt 0:00:30]} 3. c4 {[%emt 0:00:00]} e6 {[%emt 0:00:30]} 4. Nc3 {[%emt 0:00:30]} Be7 {[%emt 0:05:30]} 5. b3 {[%emt 0:00:30]} c5 {[%emt 0:00:30]} 6. cxd5 {[%emt 0:01:30]} Nxd5 {[%emt 0:06:30]} 7. Bb2 {[%emt 0:00:30]} O-O {[%emt 0:08:30]} 8. Qc2 {[%emt 0:00:30]} b6 {[%emt 0:04:30]} 9. Nxd5 {[%emt 0:05:30]} exd5 {[%emt 0:01:30]} 10. d4 {[%emt 0:00:30] The position is equal.} Ba6 {[%emt 0:10:30]} 11. Bxa6 {[%emt 0:00:30]} Nxa6 {[%emt 0:00:30]} 12. dxc5 {[%emt 0:01:30]} bxc5 {[%emt 0:01:30]} 13. O-O {[%emt 0:00:30]} Qd6 {[%emt 0:04:30]} 14. Rfd1 {[%emt 0:02:30]} Qe6 {[%emt 0:08:30]} 15. Bc3 {[%emt 0:00:30]} Rfd8 {[%emt 0:05:30]} 16. Qb2 {[%emt 0:00:30]} Bf8 {[%emt 0:00:30]} 17. Ba5 {[%emt 0:08:30]} Rd7 {[%emt 0:05:30]} 18. Rac1 {[%emt 0:00:30]} Re8 {[%emt 0:03:30]} 19. h3 {[%emt 0:00:30]} Nb8 {[%emt 0:00:30][%cal Ba6b8,Bb8c6,Bc6b4][%mdl 32]} 20. Bc3 {[%emt 0:02:30]} Nc6 {[%emt 0:01:30]} 21. Qc2 {[%emt 0:04:30]} h6 {[%emt 0:00:30]} 22. Ba1 {[%emt 0:04:30]} Nb4 {[%emt 0:01:30]} 23. Qb1 {[%emt 0:00:30]} Nc6 {[%emt 0:03:46]} 24. Ne1 {[%emt 0:00:30]} Red8 {[%emt 0:02:55]} 25. Bb2 {[%emt 0:05:30]} Qe4 {[%emt 0:00:30]} 26. Kf1 {[%emt 0:09:30]} f5 {[%emt 0:03:33]} 27. Qxe4 {[%emt 0:04:30]} dxe4 {[%emt 0:00:30]} ({Reject} 27... fxe4 28. Ba3 $14) 28. Rxd7 {[%emt 0:00:00]} Rxd7 {[%emt 0:00:00]} 29. Ke2 {[%emt 0:00:00]} Kf7 {[%emt 0:03:55]} (29... Nb4 $142) 30. g4 {[%emt 0:07:30]} g6 {[%emt 0:00:32]} 31. gxf5 {[%emt 0:01:30]} gxf5 {[%emt 0:00:17]} 32. f3 {[%emt 0:00:30]} Ke6 {[%emt 0:02:53]} 33. Rc4 {[%emt 0:10:30]} Kd5 {[%emt 0:00:43]} 34. Ng2 {[%emt 0:00:30]} Bd6 {[%emt 0:00:32]} 35. Nh4 {[%emt 0:00:30]} Be5 {[%emt 0:03:33] Dodges Nxf5} (35... Ne5 $11 {keeps the balance.} 36. Ra4 Bb8) 36. Ba3 $16 {[%emt 0:00:30]} Bd6 {[%emt 0:02:08]} 37. Ng6 {[%emt 0:05:30]} exf3+ {[%emt 0:02:50]} 38. Kxf3 {[%emt 0:00:30]} Na5 {[%emt 0:00:00]} 39. Ra4 {[%emt 0:01:30]} ({White should play} 39. Rh4 $16) 39... Nc6 $14 {[%emt 0:00:37]} 40. Rc4 {[%emt 0:03:30]} (40. Bb2 $14) 40... Na5 $1 $16 {[%emt 0:00:28]} 41. Rh4 {[%emt 0:01:28]} c4 {[%emt 0:00:57] [#]} (41... Rf7 $16 {was called for.} 42. Bb2 (42. Rxh6 Nc6 $16) 42... Nc6) 42. bxc4+ $1 $18 {[%emt 0:00:22]} Nxc4 $2 {[%emt 0:00:38] [#]} (42... Kc6 43. Rxh6 Bxa3) 43. Rd4+ $1 {[%emt 0:00:06] White is clearly winning.} Ke6 {[%emt 0:01:04]} 44. Bxd6 {[%emt 0:00:30]} (44. Rxc4 Bxa3 45. Nf4+ Kd6 $16) 44... Nxd6 {[%emt 0:00:30]} 45. Nf8+ {[%emt 0:00:04] Weighted Error Value: White=0.09 (flawless) /Black=0.29 (precise) .  Mistake:       	White=2     	Black=4      Inaccurate:     	---       	Black=4      OK:         	White=10    	Black=7      Best:        	---       	Black=2      Strong:       	White=2     	Black=1} 1-0

[Event "Turkish Youth Teams U18 2024"]
[Site "Karaman"]
[Date "2024.04.24"]
[Round "7"]
[White "Camlar, Arda"]
[Black "Buyuk, Eymen Eren"]
[Result "1-0"]
[ECO "D12"]
[WhiteElo "2389"]
[BlackElo "1998"]
[Annotator "TA"]
[PlyCount "83"]
[EventDate "2024.04.21"]
[EventType "team-tourn"]
[EventCountry "TUR"]
[SourceTitle "playchess.com"]
[Source "ChessBase"]
[SourceQuality "1"]
[TimeControl "5400+30"]

{[%evp 19,83,16,12,1,6,8,7,13,25,14,17,15,22,19,23,20,15,15,47,25,50,62,53,53,56,49,78,56,62,33,47,36,54,47,86,68,75,0,64,61,114,138,104,97,107,103,106,0,340,329,489,489,411,439,449,468,619,619,615,591,707,598,576,668,5306,5265]} 1. Nf3 {[%emt 0:04:00]} d5 {[%emt 0:01:00]} 2. b3 {[%emt 0:00:30]} Nf6 {[%emt 0:00:30]} 3. Bb2 {[%emt 0:00:00]} c6 {[%emt 0:00:30]} 4. e3 {[%emt 0:01:00]} Bf5 {[%emt 0:01:30]} 5. c4 {[%emt 0:01:30]} e6 {[%emt 0:01:30]} 6. Nc3 {[%emt 0:00:30]} h6 {[%emt 0:01:30]} 7. d4 {[%emt 0:01:30]} Nbd7 {[%emt 0:02:30]} 8. Bd3 {[%emt 0:00:30]} Bxd3 {[%emt 0:01:30]} 9. Qxd3 {[%emt 0:00:30]} Be7 {[%emt 0:00:30]} 10. O-O {[%emt 0:01:30]} O-O {[%emt 0:00:30]} 11. e4 {[%emt 0:00:30]} dxe4 {[%emt 0:03:30]} 12. Nxe4 {[%emt 0:01:30]} Nxe4 {[%emt 0:00:30]} 13. Qxe4 {[%emt 0:00:00] The position is equal.} Nf6 {[%emt 0:01:30]} 14. Qe2 {[%emt 0:00:00]} a5 {[%emt 0:00:30]} 15. a4 {[%emt 0:02:30]} Qb6 {[%emt 0:03:30]} 16. Qe3 {[%emt 0:00:30]} Rfe8 {[%emt 0:06:30]} 17. Rfd1 {[%emt 0:01:30]} Rad8 {[%emt 0:09:30]} (17... Ng4 {with more complications.} 18. Qc3 Qc7 19. Rd3 Bb4) 18. Rd3 {[%emt 0:02:30]} Qa6 {[%emt 0:03:30]} 19. Bc3 {[%emt 0:07:30]} Bb4 {[%emt 0:10:30]} 20. Bxb4 {[%emt 0:01:30]} axb4 {[%emt 0:00:30]} 21. Qd2 {[%emt 0:00:30]} Qa5 {[%emt 0:00:30]} 22. Re1 {[%emt 0:01:30] Against Ne4} b5 {[%emt 0:05:30]} 23. axb5 {[%emt 0:00:30]} cxb5 {[%emt 0:00:30]} 24. c5 {[%emt 0:00:30]} Nd5 {[%emt 0:00:00]} 25. Ne5 {[%emt 0:00:30]} Qc7 {[%emt 0:11:00]} 26. Rg3 {[%emt 0:05:30]} Kh8 {[%emt 0:05:30]} 27. Qe2 {[%emt 0:05:30]} Nf6 {[%emt 0:02:30]} 28. Qd2 {[%emt 0:01:30]} Nd5 {[%emt 0:06:30]} 29. h3 {[%emt 0:01:30]} Rf8 {[%emt 0:06:14]} (29... f6 $14) 30. Re4 $40 {[%emt 0:05:30][%mdl 128] And now Rh4 would win. White goes for the king.} Ne7 {[%emt 0:09:05]} 31. Qxb4 {[%emt 0:12:30] White is much more active.} Nf5 {[%emt 0:03:01]} 32. Rd3 {[%emt 0:00:30]} Rd5 {[%emt 0:01:36]} 33. Qxb5 {[%emt 0:02:30]} (33. f4 $16) 33... Nxd4 $2 {[%emt 0:01:09][%mdl 8192]} 34. Qc4 $18 {[%emt 0:01:30]} (34. Rexd4 Rxe5 35. Rd1 Rxc5 $11) 34... Nxb3 {[%emt 0:02:19]} (34... Nb5 {was worth a try.} 35. Qxb5 (35. Rxd5 exd5 36. Qxd5 Nc3 $11) 35... Rxe5 36. Rxe5 Qxe5) 35. Rxd5 {[%emt 0:00:30]} exd5 {[%emt 0:00:40]} 36. Qxd5 {[%emt 0:00:00]} (36. Qxb3 $2 {loses.} dxe4 37. Qd5 Kg8 $19) 36... Na5 {[%emt 0:00:11] White is clearly winning.} 37. Rf4 {[%emt 0:02:00]} Kg8 {[%emt 0:00:41] [#]} 38. Rxf7 $1 {[%emt 0:02:30][%mdl 512]} Rxf7 {[%emt 0:00:30]} 39. Nxf7 {[%emt 0:00:30]} ({Weaker is} 39. c6 Nxc6 40. Nxf7 Qxf7 $14) 39... Qxf7 {[%emt 0:00:30]} 40. Qd8+ {[%emt 0:00:30]} Kh7 {[%emt 0:00:30]} 41. Qxa5 {[%emt 0:00:30] Strongly threatening Qc3.} Qf4 {[%emt 0:00:30]} 42. Qc3 {[%emt 0:00:30] Dodges Qc1+.   Weighted Error Value: White=0.15 (very precise) /Black=0.30.  Loses game:     	---       	Black=1      Mistake:       	White=1     	Black=2      Inaccurate:     	White=1     	Black=4      OK:         	White=10    	Black=9      Best:        	White=2     	Black=3      Brilliant:      	White=1     	---} 1-0

[Event "Turkish Youth Teams U18 2024"]
[Site "Karaman"]
[Date "2024.04.24"]
[Round "7"]
[White "Ersoz, Teoman Guney"]
[Black "Gungor, Cihan Akif"]
[Result "0-1"]
[ECO "D02"]
[WhiteElo "2123"]
[BlackElo "1927"]
[Annotator "RC"]
[PlyCount "167"]
[EventDate "2024.04.21"]
[EventType "team-tourn"]
[EventCountry "TUR"]
[SourceTitle "playchess.com"]
[Source "ChessBase"]
[SourceQuality "1"]
[TimeControl "5400+30"]

1. Nf3 {[%emt 0:02:00]} d5 {[%emt 0:01:00]} 2. g3 {[%emt 0:00:00]} e6 {[%emt 0:00:30]} 3. Bg2 {[%emt 0:00:00]} Nf6 {[%emt 0:00:00]} 4. O-O {[%emt 0:00:30]} c5 {[%emt 0:00:00]} 5. d4 {[%emt 0:03:30]} cxd4 {[%emt 0:04:30]} 6. Nxd4 {[%emt 0:00:30]} e5 {[%emt 0:02:30]} 7. Nb3 {[%emt 0:06:30]} Nc6 {[%emt 0:09:30]} 8. c4 {[%emt 0:06:30]} dxc4 {[%emt 0:00:30]} 9. Bxc6+ {[%emt 0:05:30]} bxc6 {[%emt 0:00:30]} 10. Qxd8+ {[%emt 0:00:30]} Kxd8 {[%emt 0:00:00]} 11. Na5 {[%emt 0:00:30]} Kc7 {[%emt 0:02:00]} 12. Nxc4 {[%emt 0:00:00]} Nd7 {[%emt 0:00:00]} 13. Bd2 {[%emt 0:04:00]} f6 {[%emt 0:01:00]} 14. Rc1 {[%emt 0:08:30]} Ba6 {[%emt 0:20:30]} 15. Be3 {[%emt 0:14:30]} Nb6 {[%emt 0:02:30]} 16. Na5 {[%emt 0:01:30]} Bxe2 {[%emt 0:00:30]} 17. Nxc6 {[%emt 0:05:30]} Kb7 {[%emt 0:00:30]} 18. Na5+ {[%emt 0:04:30]} Ka6 {[%emt 0:00:30]} 19. Nb3 {[%emt 0:00:30]} Nc4 {[%emt 0:17:30]} 20. Nc3 {[%emt 0:02:30]} Bf3 {[%emt 0:00:30]} 21. Bc5 {[%emt 0:01:30]} Rc8 {[%emt 0:02:30]} 22. Ne4 {[%emt 0:06:30]} Nxb2 {[%emt 0:11:30]} 23. Bxf8 {[%emt 0:02:30]} Rxc1+ {[%emt 0:02:30]} 24. Rxc1 {[%emt 0:01:30]} Rxf8 {[%emt 0:00:00]} 25. Nec5+ {[%emt 0:06:00]} Kb5 {[%emt 0:00:00]} 26. Ne6 {[%emt 0:00:00]} Rf7 {[%emt 0:00:30]} 27. Nd2 {[%emt 0:04:10]} Bg4 {[%emt 0:02:30]} 28. Nc7+ {[%emt 0:00:05]} Ka5 {[%emt 0:00:30]} 29. Nb3+ {[%emt 0:06:35]} Kb4 {[%emt 0:00:30]} 30. Nc5 {[%emt 0:01:07]} Ka3 {[%emt 0:09:43]} 31. Rc3+ {[%emt 0:02:41]} Kxa2 {[%emt 0:00:00]} 32. Nd5 {[%emt 0:00:00]} a5 {[%emt 0:00:20]} 33. Rc2 {[%emt 0:02:43]} Bf3 {[%emt 0:02:39]} 34. Nc3+ {[%emt 0:00:52]} Ka3 {[%emt 0:00:01]} 35. Nb5+ {[%emt 0:00:35]} Kb4 {[%emt 0:00:53]} 36. Nd6 {[%emt 0:00:30]} Ra7 {[%emt 0:00:20]} 37. Ne6 {[%emt 0:02:28]} Kb3 {[%emt 0:00:07]} 38. Rd2 {[%emt 0:00:42]} Kc3 {[%emt 0:00:19]} 39. Nb5+ {[%emt 0:01:53]} Kxd2 {[%emt 0:00:30]} 40. Nxa7 {[%emt 0:00:30]} a4 {[%emt 0:00:30]} 41. Nb5 {[%emt 0:00:00]} Nc4 {[%emt 0:00:34]} 42. Nc5 {[%emt 0:00:08]} a3 {[%emt 0:00:06]} 43. Nxa3 {[%emt 0:01:06]} Nxa3 {[%emt 0:00:30]} 44. Ne6 {[%emt 0:00:00]} Kd3 {[%emt 0:02:32]} 45. Nxg7 {[%emt 0:00:23]} Ke4 {[%emt 0:00:30]} 46. h3 {[%emt 0:00:30]} Nb5 {[%emt 0:00:00]} 47. g4 {[%emt 0:00:37]} Kd5 {[%emt 0:00:25]} 48. Kh2 {[%emt 0:00:25]} Be4 {[%emt 0:00:30]} 49. Nh5 {[%emt 0:00:30]} Ke6 {[%emt 0:00:00]} 50. f4 {[%emt 0:00:44]} Nd4 {[%emt 0:00:13]} 51. fxe5 {[%emt 0:00:30]} fxe5 {[%emt 0:00:13]} 52. h4 {[%emt 0:00:16]} Bg6 {[%emt 0:00:30]} 53. Ng3 {[%emt 0:00:30]} Kd5 {[%emt 0:00:30]} 54. h5 {[%emt 0:00:30]} Bf7 {[%emt 0:00:30]} 55. Kg2 {[%emt 0:00:30]} e4 {[%emt 0:00:30]} 56. g5 {[%emt 0:00:30]} Ke5 {[%emt 0:00:30]} 57. g6 {[%emt 0:00:30]} hxg6 {[%emt 0:00:30]} 58. hxg6 {[%emt 0:00:30]} Bxg6 {[%emt 0:00:30]} 59. Nxe4 {[%emt 0:00:30]} Bxe4+ {[%emt 0:00:30]} 60. Kg3 {[%emt 0:00:30]} Kf5 {[%emt 0:00:30]} 61. Kh4 {[%emt 0:00:30]} Bf3 {[%emt 0:00:30]} 62. Kg3 {[%emt 0:00:30]} Ke4 {[%emt 0:00:30]} 63. Kf2 {[%emt 0:00:30]} Kf4 {[%emt 0:00:30]} 64. Ke1 {[%emt 0:00:30]} Ke3 {[%emt 0:00:30]} 65. Kf1 {[%emt 0:00:30]} Ne2 {[%emt 0:00:30]} 66. Ke1 {[%emt 0:00:30]} Bg2 {[%emt 0:00:30]} 67. Kd1 {[%emt 0:00:30]} Nd4 {[%emt 0:00:30]} 68. Kc1 {[%emt 0:00:30]} Kd3 {[%emt 0:00:30]} 69. Kb2 {[%emt 0:00:30]} Nc2 {[%emt 0:00:30]} 70. Kb3 {[%emt 0:00:30]} Bc6 {[%emt 0:00:30]} 71. Kb2 {[%emt 0:00:30]} Bd5 {[%emt 0:00:30]} 72. Kc1 {[%emt 0:00:30]} Kc3 {[%emt 0:00:30]} 73. Kb1 {[%emt 0:00:30]} Bc4 {[%emt 0:00:30]} 74. Kc1 {[%emt 0:00:30]} Ba2 {[%emt 0:00:30]} 75. Kd1 {[%emt 0:00:30]} Nd4 {[%emt 0:00:30]} 76. Kc1 {[%emt 0:00:30]} Ne2+ {[%emt 0:00:30]} 77. Kd1 {[%emt 0:00:30]} Kd3 {[%emt 0:00:30]} 78. Ke1 {[%emt 0:00:30]} Ke3 {[%emt 0:00:30]} 79. Kf1 {[%emt 0:00:30]} Nf4 {[%emt 0:00:30]} 80. Ke1 {[%emt 0:00:30]} Ng2+ {[%emt 0:00:30]} 81. Kf1 {[%emt 0:00:30]} Kf3 {[%emt 0:00:30]} 82. Kg1 {[%emt 0:00:30]} Kg3 {[%emt 0:00:30]} 83. Kh1 {[%emt 0:00:30]} Nh4 {[%emt 0:00:30]} 84. Kg1 {[%emt 0:00:30]} 0-1